[Event "FIDE World Cadets U10 2022"]
[Site "Batumi"]
[Date "2022.09.16"]
[Round "1"]
[White "Smirnov, Mark"]
[Black "Mamikonyan, Artem T"]
[Result "1-0"]
[ECO "B12"]
[WhiteElo "1985"]
[BlackElo "1274"]
[Annotator "TA"]
[PlyCount "47"]
[EventDate "2022.09.16"]
[EventType "swiss"]
[EventCountry "GEO"]
[SourceTitle "playchess.com"]
[Source "ChessBase"]
[SourceQuality "1"]
[TimeControl "5400+30"]

{[%evp 13,47,35,16,13,61,36,64,47,31,35,211,37,298,124,160,119,128,98,130,130,122,124,203,208,172,172,309,307,304,261,237,120,302,262,1183,728]} 1. e4 {[%emt 0:01:00]} c6 {[%emt 0:01:00]} 2. d4 {[%emt 0:00:30]} d5 {[%emt 0:00:30]} 3. e5 {[%emt 0:00:30]} Bf5 {[%emt 0:00:30]} 4. Nf3 {[%emt 0:00:30]} e6 {[%emt 0:00:30]} 5. Be2 {[%emt 0:00:30]} Nd7 {[%emt 0:00:30]} 6. O-O {[%emt 0:00:30]} Ne7 {[%emt 0:00:30]} 7. Nbd2 {[%emt 0:00:30]} c5 {[%emt 0:00:00]} 8. c4 {[%emt 0:02:30] B12: Caro-Kann: Advance Variation.} cxd4 {[%emt 0:02:00]} (8... Rc8 $11) 9. Nxd4 $14 {[%emt 0:01:30]} Nxe5 {[%emt 0:01:30]} 10. cxd5 {[%emt 0:03:30] White is slightly better.} Qxd5 {[%emt 0:02:30]} 11. Qa4+ {[%emt 0:04:30]} N5c6 $2 {[%emt 0:03:30] [#]} ({Better is} 11... N7c6 $1 $14 12. Nxf5 exf5) 12. N2b3 $2 {[%emt 0:31:30] [#]} (12. Nc4 $1 $18 Qxd4 13. Rd1 Qxd1+ 14. Bxd1) 12... Rd8 $146 {[%emt 0:07:30][%mdl 8192] [#]} (12... Qd7 $14) ({Predecessor:} 12... Qd7 13. Rd1 Nxd4 14. Qxd7+ Kxd7 15. Nxd4 Be4 16. Bb5+ Kc7 17. Bf4+ Kb6 18. a4 a5 {1-0 (28) Bologan,V (2690)-Dimitrov,R (2388) Bastia 2010}) 13. Bg5 {[%emt 0:21:30]} (13. Be3 $1 $18 {is the precise move to win.}) 13... Be4 {[%emt 0:04:30]} 14. Nxc6 {[%emt 0:01:30] White is more active.} bxc6 {[%emt 0:00:30]} 15. Rfd1 {[%emt 0:05:30]} Qxg5 {[%emt 0:00:30][%csl Ge4][%cal Rg5g2]} 16. Rxd8+ {[%emt 0:00:00]} Kxd8 {[%emt 0:00:30][%csl Ge4][%cal Rg5g2]} 17. Qxe4 {[%emt 0:00:00] aiming for Qa4. Really sharp!} Ke8 {[%emt 0:00:00]} (17... Nd5 $16 {might work better.}) 18. Qa4 {[%emt 0:02:30]} Qe5 {[%emt 0:03:00] [#]} 19. Bf3 $36 {[%emt 0:05:47][%mdl 2048] White is really pushing.} Qb5 {[%emt 0:01:30]} (19... g6 {was called for.} 20. Qxa7 Nd5) 20. Qxa7 $18 {[%emt 0:00:31]} Nd5 {[%emt 0:00:30]} 21. Rc1 {[%emt 0:01:09] Strongly threatening Bxd5.} g6 {[%emt 0:02:30]} 22. Qa8+ {[%emt 0:02:43]} (22. Bxd5 $18 Qxd5 23. Na5) 22... Kd7 {[%emt 0:00:00]} (22... Ke7 $16) 23. Bxd5 {[%emt 0:10:27]} exd5 {[%emt 0:00:00]} (23... Qxd5 24. Qb7+ Ke8) 24. Nd4 {Weighted Error Value: White=0.50/Black=0.79} 1-0

[Event "FIDE World Cadets U10 2022"]
[Site "Batumi"]
[Date "2022.09.16"]
[Round "1"]
[White "Golis, Wiktor"]
[Black "Bundan, Edward"]
[Result "1-0"]
[ECO "B48"]
[WhiteElo "1955"]
[BlackElo "1268"]
[Annotator "TA"]
[PlyCount "63"]
[EventDate "2022.09.16"]
[EventType "swiss"]
[EventCountry "GEO"]
[SourceTitle "playchess.com"]
[Source "ChessBase"]
[SourceQuality "1"]
[TimeControl "5400+30"]

{[%evp 13,62,29,46,0,0,0,5,-36,-17,-24,-18,-58,-57,-46,-25,-66,43,37,144,141,222,222,235,-109,0,0,463,378,380,370,682,680,664,665,812,793,1408,1387,5311,5302,2968,2865,1224,901,29983,29984,29986,29987,29993,29994,29999]} 1. e4 {[%emt 0:01:00]} c5 {[%emt 0:01:00]} 2. Nf3 {[%emt 0:00:30]} e6 {[%emt 0:00:30]} 3. d4 {[%emt 0:00:30]} cxd4 {[%emt 0:00:30]} 4. Nxd4 {[%emt 0:00:00]} Nc6 {[%emt 0:00:30]} 5. Nc3 {[%emt 0:00:00]} Qc7 {[%emt 0:00:00]} 6. a3 {[%emt 0:00:00]} a6 {[%emt 0:00:00]} 7. Be3 {[%emt 0:00:00]} Nf6 {[%emt 0:01:30]} 8. g4 {[%emt 0:03:30] B48: Sicilian: Taimanov: 5 Nc3 Qc7 6 Be3 a6 without Be2.} (8. f4 $14) 8... h5 $11 {[%emt 0:15:30]} 9. gxh5 {[%emt 0:09:30]} Rxh5 {[%emt 0:03:30] [#]} 10. h3 $146 {[%emt 0:01:30] The position is equal.} ({Predecessor:} 10. Qd2 b5 11. Be2 Rh3 12. Bf4 Qb6 13. Nb3 Bb7 14. O-O-O Na5 15. Nxa5 Qxa5 16. f3 {½-½ (37) Gorovykh,E (2381)-Matlakov,M (2452) St Petersburg 2007}) 10... b5 {[%emt 0:14:30]} 11. Nxc6 {[%emt 0:05:30]} dxc6 {[%emt 0:02:30]} 12. Bg2 {[%emt 0:10:30]} Bb7 {[%emt 0:03:30]} 13. Qe2 {[%emt 0:02:30]} O-O-O {[%emt 0:09:30]} 14. O-O {[%emt 0:00:30]} g5 {[%emt 0:11:30]} (14... Be7 $15) 15. f4 $14 {[%emt 0:03:30]} gxf4 {[%emt 0:12:30]} (15... Rh7 $14) 16. Bxf4 $16 {[%emt 0:01:30]} Qb6+ {[%emt 0:01:30] [#]} (16... Re5 $16) 17. Kh1 $1 $18 {[%emt 0:00:30] Strongly threatening Be3.} Bh6 {[%emt 0:07:57]} 18. e5 $2 {[%emt 0:01:30] [#]} (18. Bg3 $18 Rd2 19. Qf3) 18... Bxf4 {[%emt 0:01:09]} (18... c5 $1 $17 19. Kh2 (19. exf6 $2 Rxh3+ 20. Bh2 Rd2 $19) 19... Bxg2 20. Qxg2 Rg8) 19. Rxf4 $11 {[%emt 0:00:30]} Rdh8 $2 {[%emt 0:03:39][%mdl 8192]} 20. exf6 {[%emt 0:00:30]} c5 {[%emt 0:03:16]} 21. Ne4 {[%emt 0:01:30]} Bxe4 $2 {[%emt 0:01:43]} (21... Qc7 22. Rg4 Qe5) 22. Qxe4 $18 {[%emt 0:00:30]} Rd5 {[%emt 0:01:10]} 23. Qe3 {[%emt 0:00:30]} Rdh5 {[%emt 0:00:40]} 24. Rd1 {[%emt 0:00:30] Against Qd6} Qc7 {[%emt 0:01:19]} 25. Qf3 {[%emt 0:00:30] Threatening mate with Qa8+.} Rd5 {[%emt 0:01:13]} 26. Rxd5 {[%emt 0:00:30]} exd5 {[%emt 0:00:00]} 27. Rf5 {[%emt 0:00:30][%cal Bf4f5,Bf5d5,Bd5c5][%mdl 32]} Re8 {[%emt 0:00:32]} 28. Qf2 {[%emt 0:01:30]} Qd6 {[%emt 0:01:55]} 29. Rxd5 {[%emt 0:00:00] White mates.} Qe6 {[%emt 0:00:26]} 30. Rxc5+ {[%emt 0:00:00]} Kb8 {[%emt 0:00:46]} 31. Qf4+ {[%emt 0:00:30]} Ka7 {[%emt 0:01:32]} 32. Qc7# {[%emt 0:00:00] Weighted Error Value: White=0.43/Black=0.90} 1-0

[Event "FIDE World Cadets U10 2022"]
[Site "Batumi"]
[Date "2022.09.16"]
[Round "1"]
[White "Guo, Ethan"]
[Black "Suleymanov, Askhab"]
[Result "1-0"]
[ECO "C54"]
[WhiteElo "1917"]
[BlackElo "1245"]
[Annotator "TA"]
[PlyCount "65"]
[EventDate "2022.09.16"]
[EventType "swiss"]
[EventCountry "GEO"]
[SourceTitle "playchess.com"]
[Source "ChessBase"]
[SourceQuality "1"]
[TimeControl "5400+30"]

{[%evp 13,64,25,24,9,33,28,41,29,79,69,91,81,117,122,178,144,152,147,159,161,179,205,190,146,293,285,352,354,354,357,370,352,1114,622,919,919,918,887,29988,479,462,405,29989,29990,29990,29991,29991,29992,29992,29993,29998,29999,29999]} 1. e4 {[%emt 0:01:00]} e5 {[%emt 0:01:00]} 2. Nf3 {[%emt 0:00:30]} Nc6 {[%emt 0:00:30]} 3. Bc4 {[%emt 0:00:30]} Bc5 {[%emt 0:00:30]} 4. c3 {[%emt 0:00:00]} Nf6 {[%emt 0:00:30]} 5. d3 {[%emt 0:00:00]} d6 {[%emt 0:00:30]} 6. a4 {[%emt 0:00:00]} a6 {[%emt 0:00:30]} 7. O-O {[%emt 0:00:00]} O-O {[%emt 0:00:30]} 8. Nbd2 {[%emt 0:00:30][%cal Bb1d2,Bd2f1,Bf1g3][%mdl 32] C54: Giuoco Piano: 4 c3 Nf6, main lines with 5 d4 and 5 d3.} Bg4 {[%emt 0:00:30]} 9. h3 {[%emt 0:00:30]} Bh5 {[%emt 0:00:30]} 10. Re1 {[%emt 0:00:00] White is slightly better.} Qd7 {[%emt 0:05:30]} (10... a5 $11 {remains equal.}) 11. Nf1 $16 {[%emt 0:00:00]} Ne7 {[%emt 0:04:30]} 12. Ng3 {[%emt 0:00:30]} Bg6 {[%emt 0:04:30]} 13. Bg5 {[%emt 0:00:30] [#]} Kh8 $146 {[%emt 0:07:30]} (13... c6 $16) ({Predecessor:} 13... b5 14. axb5 axb5 15. Rxa8 Rxa8 16. Bb3 Re8 17. Nh4 Kh8 18. Bxf6 gxf6 {1-0 (57) Boure,H (1781)-Murie,E (2070) Gorges 2008}) 14. Bxf6 {[%emt 0:02:30]} gxf6 {[%emt 0:00:30]} 15. d4 {[%emt 0:00:30]} exd4 {[%emt 0:03:30]} 16. Nxd4 {[%emt 0:00:30]} Bxd4 {[%emt 0:06:30]} 17. Qxd4 {[%emt 0:00:30]} ({Don't do} 17. cxd4 f5 $16) 17... Kg7 {[%emt 0:02:30]} 18. f4 {[%emt 0:02:30][%cal Bf2f4,Bf4f5][%mdl 32] And now f5 would win.} Nc6 {[%emt 0:03:30]} (18... c5 $16 19. Qd1 f5 20. exf5 Nxf5) 19. Qd2 {[%emt 0:02:30]} f5 {[%emt 0:05:30]} 20. exf5 {[%emt 0:00:30]} Bxf5 {[%emt 0:00:30]} 21. Qd5 {[%emt 0:01:30]} Bg6 {[%emt 0:10:30]} 22. f5 {[%emt 0:00:00]} Ne7 $2 {[%emt 0:01:30]} (22... Qd8 23. fxg6 hxg6) 23. Qd4+ {[%emt 0:00:00]} Kg8 {[%emt 0:09:30]} 24. fxg6 {[%emt 0:00:30]} hxg6 {[%emt 0:01:30]} 25. Qf6 {[%emt 0:00:30] Threatening mate with Re4.} Rae8 {[%emt 0:06:30] [#]} 26. Kh1 {[%emt 0:04:30]} (26. Rxe7 $142 $1 Qxe7 27. Qxg6+ Kh8 28. Qh6+ Kg8 29. Nf5 Qe5 30. Bd3 Qe3+ 31. Nxe3) 26... d5 $18 {[%emt 0:04:33]} 27. Bd3 {[%emt 0:00:30]} Kh7 {[%emt 0:05:28]} (27... Qd6 $18 28. Qxd6 cxd6) 28. Re5 {[%emt 0:00:30][%cal Be1e5,Be5h5,Bh5h6,Bh6h8][%mdl 32] White mates.} Ng8 {[%emt 0:06:49]} 29. Rh5+ {[%emt 0:00:30]} Nh6 {[%emt 0:00:18] [#]} 30. Nf5 $1 {[%emt 0:00:30][%mdl 512]} Qxf5 {[%emt 0:02:51]} 31. Bxf5 {[%emt 0:00:30]} gxf5 {[%emt 0:05:07]} 32. Rxh6+ {[%emt 0:00:30]} Kg8 {[%emt 0:00:00]} 33. Rh8# {[%emt 0:00:30] Black did not feel at home in the position after the opening.  Weighted Error Value: White=0.57/Black=0.74} 1-0

[Event "FIDE World Cadets U10 2022"]
[Site "Batumi"]
[Date "2022.09.16"]
[Round "1"]
[White "Lacan Rus, David"]
[Black "Saadeddine, Adam"]
[Result "1-0"]
[ECO "C02"]
[WhiteElo "1886"]
[BlackElo "1241"]
[Annotator "NA COMBH"]
[PlyCount "67"]
[EventDate "2022.09.16"]
[EventType "swiss"]
[EventCountry "GEO"]
[SourceTitle "playchess.com"]
[Source "ChessBase"]
[SourceQuality "1"]
[TimeControl "5400+30"]

1. e4 {[%emt 0:01:00]} e6 {[%emt 0:01:00]} 2. d4 {[%emt 0:00:30]} d5 {[%emt 0:00:30]} 3. e5 {[%emt 0:00:30]} c5 {[%emt 0:00:30]} 4. c3 {[%emt 0:00:30]} Nc6 {[%emt 0:00:30]} 5. Nf3 {[%emt 0:00:30]} cxd4 {[%emt 0:01:30]} 6. cxd4 {[%emt 0:01:30]} Nge7 {[%emt 0:04:30]} 7. Be2 {[%emt 0:08:30]} Nf5 {[%emt 0:00:30]} 8. O-O {[%emt 0:04:30]} Qb6 {[%emt 0:01:30]} 9. Nc3 {[%emt 0:04:30]} a6 {[%emt 0:02:30]} 10. Na4 {[%emt 0:02:30]} Qa7 {[%emt 0:02:30]} 11. g4 {[%emt 0:03:30]} Nfe7 {[%emt 0:12:30]} 12. Be3 {[%emt 0:02:30]} b5 {[%emt 0:03:30]} 13. Nc5 {[%emt 0:01:30]} Bd7 {[%emt 0:03:30]} 14. Rc1 {[%emt 0:01:30]} Nc8 {[%emt 0:01:30]} 15. Qd2 {[%emt 0:04:30]} Be7 {[%emt 0:08:30]} 16. Ne1 {[%emt 0:02:30]} Bxc5 {[%emt 0:06:30]} 17. Rxc5 {[%emt 0:00:30]} Nb6 {[%emt 0:01:30]} 18. b3 {[%emt 0:00:30]} Qb8 {[%emt 0:05:30]} 19. Nd3 {[%emt 0:01:30]} h6 {[%emt 0:04:30]} 20. f4 {[%emt 0:01:30]} Qd8 {[%emt 0:05:30]} 21. Qe1 {[%emt 0:08:30]} g6 {[%emt 0:04:30]} 22. Qg3 {[%emt 0:06:30]} Qe7 {[%emt 0:02:30]} 23. Rfc1 {[%emt 0:08:30]} Rc8 {[%emt 0:02:30]} 24. Kh1 {[%emt 0:01:30]} Qd8 {[%emt 0:00:30]} 25. f5 {[%emt 0:01:30]} gxf5 {[%emt 0:03:30]} 26. gxf5 {[%emt 0:00:30]} exf5 {[%emt 0:00:30]} 27. Qg7 {[%emt 0:01:30]} Rf8 {[%emt 0:01:30]} 28. Bxh6 {[%emt 0:01:30]} Qe7 {[%emt 0:00:46]} 29. Bg5 {[%emt 0:06:30]} f6 {[%emt 0:01:22]} 30. Bh5+ {[%emt 0:00:00]} Kd8 {[%emt 0:00:56]} 31. Bxf6 {[%emt 0:00:00]} Rxf6 {[%emt 0:00:31]} 32. Qxf6 {[%emt 0:00:30]} Nxd4 {[%emt 0:00:57]} 33. Qxb6+ {[%emt 0:00:30]} Rc7 {[%emt 0:01:04]} 34. Qxc7# {[%emt 0:00:30]} 1-0

[Event "FIDE World Cadets U10 2022"]
[Site "Batumi"]
[Date "2022.09.16"]
[Round "1"]
[White "Kuandykuly, Danis"]
[Black "Militonyan, Movses"]
[Result "1-0"]
[ECO "B15"]
[WhiteElo "1853"]
[BlackElo "1231"]
[Annotator "NA COMBH"]
[PlyCount "65"]
[EventDate "2022.09.16"]
[EventType "swiss"]
[EventCountry "GEO"]
[SourceTitle "playchess.com"]
[Source "ChessBase"]
[SourceQuality "1"]
[TimeControl "5400+30"]

1. e4 {[%emt 0:01:00]} c6 {[%emt 0:01:00]} 2. d4 {[%emt 0:00:30]} d5 {[%emt 0:00:30]} 3. Nc3 {[%emt 0:00:30]} dxe4 {[%emt 0:00:30]} 4. Nxe4 {[%emt 0:00:30]} Nf6 {[%emt 0:00:00]} 5. Nxf6+ {[%emt 0:00:00]} exf6 {[%emt 0:00:00]} 6. c3 {[%emt 0:00:00]} Bd6 {[%emt 0:00:30]} 7. Bd3 {[%emt 0:00:00]} O-O {[%emt 0:00:00]} 8. Qc2 {[%emt 0:00:00]} g6 {[%emt 0:00:00]} 9. Bh6 {[%emt 0:00:00]} Re8+ {[%emt 0:00:30]} 10. Ne2 {[%emt 0:00:00]} Bf8 {[%emt 0:02:30]} 11. Bxf8 {[%emt 0:00:00]} Kxf8 {[%emt 0:00:30]} 12. O-O-O {[%emt 0:00:00]} Qa5 {[%emt 0:03:30]} 13. Kb1 {[%emt 0:00:30]} Be6 {[%emt 0:12:30]} 14. Nc1 {[%emt 0:02:30]} Na6 {[%emt 0:00:30]} 15. h4 {[%emt 0:06:30]} Kg7 {[%emt 0:05:30]} 16. h5 {[%emt 0:02:30]} b5 {[%emt 0:02:30]} 17. Qd2 {[%emt 0:01:30]} Rh8 {[%emt 0:04:30]} 18. Qf4 {[%emt 0:03:30]} Qd8 {[%emt 0:32:30]} 19. Rh2 {[%emt 0:07:30]} h6 {[%emt 0:15:52]} 20. hxg6 {[%emt 0:01:30]} fxg6 {[%emt 0:00:23]} 21. Rdh1 {[%emt 0:00:30]} g5 {[%emt 0:05:14]} 22. Qe4 {[%emt 0:00:30]} Qe8 {[%emt 0:00:00]} 23. Ka1 {[%emt 0:11:30]} Bc4 {[%emt 0:04:03]} 24. Qf5 {[%emt 0:00:30]} Bxd3 {[%emt 0:01:18]} 25. Nxd3 {[%emt 0:01:30]} Qf7 {[%emt 0:04:19]} 26. f4 {[%emt 0:01:30]} Nc7 {[%emt 0:02:27]} 27. fxg5 {[%emt 0:00:30]} hxg5 {[%emt 0:00:30]} 28. Rh7+ {[%emt 0:00:30]} Rxh7 {[%emt 0:02:25]} 29. Rxh7+ {[%emt 0:00:00]} Kg8 {[%emt 0:00:38]} 30. Rxf7 {[%emt 0:00:00]} Kxf7 {[%emt 0:00:13]} 31. Ne5+ {[%emt 0:00:30]} Kg7 {[%emt 0:00:50]} 32. Qg6+ {[%emt 0:00:00]} Kf8 {[%emt 0:00:13]} 33. Qf7# {[%emt 0:00:00]} 1-0

[Event "FIDE World Cadets U10 2022"]
[Site "Batumi"]
[Date "2022.09.16"]
[Round "1"]
[White "Kleimenov, Nikolay"]
[Black "Ikhsan, Yersultan"]
[Result "1-0"]
[ECO "B31"]
[WhiteElo "1845"]
[BlackElo "1198"]
[Annotator "NA COMBH"]
[PlyCount "113"]
[EventDate "2022.09.16"]
[EventType "swiss"]
[EventCountry "GEO"]
[SourceTitle "playchess.com"]
[Source "ChessBase"]
[SourceQuality "1"]
[TimeControl "5400+30"]

1. e4 {[%emt 0:01:00]} c5 {[%emt 0:01:00]} 2. Nf3 {[%emt 0:00:30]} Nc6 {[%emt 0:00:30]} 3. Bb5 {[%emt 0:00:30]} g6 {[%emt 0:00:30]} 4. Bxc6 {[%emt 0:00:30]} dxc6 {[%emt 0:00:30]} 5. O-O {[%emt 0:00:30]} Bg7 {[%emt 0:00:30]} 6. d3 {[%emt 0:00:00]} e5 {[%emt 0:00:00]} 7. Be3 {[%emt 0:00:00]} b6 {[%emt 0:00:00]} 8. Nbd2 {[%emt 0:00:00]} Ne7 {[%emt 0:00:30]} 9. a4 {[%emt 0:02:00]} a5 {[%emt 0:11:30]} 10. h3 {[%emt 0:01:30]} O-O {[%emt 0:01:30]} 11. Nc4 {[%emt 0:00:30]} Qc7 {[%emt 0:00:00]} 12. b4 {[%emt 0:01:30]} axb4 {[%emt 0:07:00]} 13. a5 {[%emt 0:00:30]} bxa5 {[%emt 0:09:30]} 14. Bxc5 {[%emt 0:01:30]} Be6 {[%emt 0:00:00]} 15. Ncxe5 {[%emt 0:00:30]} Rfc8 {[%emt 0:13:00]} 16. d4 {[%emt 0:01:30]} Re8 {[%emt 0:11:30]} 17. Re1 {[%emt 0:10:30]} Nc8 {[%emt 0:07:30]} 18. Bxb4 {[%emt 0:00:30]} Nd6 {[%emt 0:01:30]} 19. Bd2 {[%emt 0:06:30]} c5 {[%emt 0:05:30]} 20. d5 {[%emt 0:06:30]} Bc8 {[%emt 0:14:12]} 21. Bf4 {[%emt 0:00:30]} c4 {[%emt 0:03:21]} 22. Rb1 {[%emt 0:04:30]} Bb7 {[%emt 0:10:08]} 23. Nxf7 {[%emt 0:03:30]} Qxf7 {[%emt 0:00:58]} 24. Bxd6 {[%emt 0:00:00]} a4 {[%emt 0:00:14]} 25. Ba3 {[%emt 0:00:00]} h6 {[%emt 0:00:30]} 26. Nd4 {[%emt 0:00:30]} Bxd5 {[%emt 0:00:00]} 27. exd5 {[%emt 0:03:30]} Rxe1+ {[%emt 0:00:25]} 28. Qxe1 {[%emt 0:00:30]} Bxd4 {[%emt 0:00:00]} 29. c3 {[%emt 0:00:00]} Re8 {[%emt 0:00:45]} 30. Qd2 {[%emt 0:01:00]} Ba7 {[%emt 0:00:08]} 31. d6 {[%emt 0:00:30]} Rf8 {[%emt 0:02:09]} 32. d7 {[%emt 0:01:30]} Bxf2+ {[%emt 0:00:30]} 33. Kh1 {[%emt 0:00:30]} Rd8 {[%emt 0:00:57]} 34. Rf1 {[%emt 0:00:30]} Rxd7 {[%emt 0:00:51]} 35. Qxf2 {[%emt 0:00:30]} Qxf2 {[%emt 0:00:30]} 36. Rxf2 {[%emt 0:00:00]} Rd1+ {[%emt 0:00:00]} 37. Kh2 {[%emt 0:00:00]} Ra1 {[%emt 0:00:00]} 38. Bc5 {[%emt 0:01:30]} a3 {[%emt 0:00:07]} 39. Rf8+ {[%emt 0:00:00]} Kg7 {[%emt 0:00:00]} 40. Ra8 {[%emt 0:01:00]} a2 {[%emt 0:00:00]} 41. Kg3 {[%emt 0:00:00]} Kf7 {[%emt 0:00:00]} 42. Ra6 {[%emt 0:00:00]} Rc1 {[%emt 0:00:39]} 43. Rxa2 {[%emt 0:00:30]} Rxc3+ {[%emt 0:00:00]} 44. Kf2 {[%emt 0:00:30]} Rc1 {[%emt 0:00:12]} 45. Be3 {[%emt 0:00:30]} Rd1 {[%emt 0:00:00]} 46. Rc2 {[%emt 0:00:00]} g5 {[%emt 0:00:15]} 47. Rxc4 {[%emt 0:00:00]} Rd6 {[%emt 0:00:15]} 48. Rb4 {[%emt 0:00:00]} Rd3 {[%emt 0:00:34]} 49. Rb6 {[%emt 0:00:00]} Kg7 {[%emt 0:00:00]} 50. Kf3 {[%emt 0:00:00]} h5 {[%emt 0:00:18]} 51. Ke4 {[%emt 0:00:00]} Ra3 {[%emt 0:00:06]} 52. Bxg5 {[%emt 0:00:30]} Rg3 {[%emt 0:00:11]} 53. Kf5 {[%emt 0:00:30]} Rxg2 {[%emt 0:01:00]} 54. Rb7+ {[%emt 0:00:30]} Kf8 {[%emt 0:00:06]} 55. Kg6 {[%emt 0:00:30]} Ke8 {[%emt 0:00:07]} 56. Re7+ {[%emt 0:00:00]} Kf8 {[%emt 0:00:08]} 57. Rd7 {[%emt 0:00:00]} 1-0

[Event "FIDE World Cadets U10 2022"]
[Site "Batumi"]
[Date "2022.09.16"]
[Round "1"]
[White "Kleschevnikov, Arseny"]
[Black "Inauri, Alexi"]
[Result "1/2-1/2"]
[ECO "E12"]
[WhiteElo "1809"]
[BlackElo "1190"]
[Annotator "NA COMBH"]
[PlyCount "115"]
[EventDate "2022.09.16"]
[EventType "swiss"]
[EventCountry "GEO"]
[SourceTitle "playchess.com"]
[Source "ChessBase"]
[SourceQuality "1"]
[TimeControl "5400+30"]

1. d4 {[%emt 0:01:00]} Nf6 {[%emt 0:01:00]} 2. c4 {[%emt 0:00:30]} e6 {[%emt 0:00:30]} 3. Nf3 {[%emt 0:00:30]} b6 {[%emt 0:00:30]} 4. a3 {[%emt 0:00:30]} Bb7 {[%emt 0:00:30]} 5. Nc3 {[%emt 0:00:30]} Be7 {[%emt 0:00:00]} 6. d5 {[%emt 0:00:00]} exd5 {[%emt 0:00:00]} 7. cxd5 {[%emt 0:00:00]} O-O {[%emt 0:00:00]} 8. e4 {[%emt 0:00:30]} d6 {[%emt 0:05:00]} 9. Be2 {[%emt 0:03:30]} Nbd7 {[%emt 0:00:00]} 10. b4 {[%emt 0:03:30]} Re8 {[%emt 0:04:00]} 11. O-O {[%emt 0:03:30]} Bf8 {[%emt 0:02:30]} 12. Qc2 {[%emt 0:03:30]} a6 {[%emt 0:07:30]} 13. Bb2 {[%emt 0:10:30]} g6 {[%emt 0:00:30]} 14. Nd4 {[%emt 0:12:30]} Qe7 {[%emt 0:05:30]} 15. f3 {[%emt 0:18:30]} Bh6 {[%emt 0:04:30]} 16. Kh1 {[%emt 0:02:30]} Bg7 {[%emt 0:05:30]} 17. Rad1 {[%emt 0:03:30]} Nh5 {[%emt 0:10:30]} 18. g3 {[%emt 0:03:30]} Rf8 {[%emt 0:03:30]} 19. f4 {[%emt 0:01:30]} Nhf6 {[%emt 0:10:30]} 20. Bf3 {[%emt 0:01:30]} b5 {[%emt 0:07:30]} 21. a4 {[%emt 0:07:30]} bxa4 {[%emt 0:02:30]} 22. Nxa4 {[%emt 0:00:30]} Nb6 {[%emt 0:03:30]} 23. Rfe1 {[%emt 0:01:30]} Qd7 {[%emt 0:03:30]} 24. Nxb6 {[%emt 0:06:37]} cxb6 {[%emt 0:00:30]} 25. Nc6 {[%emt 0:00:16]} Rfc8 {[%emt 0:07:05]} 26. Qe2 {[%emt 0:01:51]} Re8 {[%emt 0:05:21]} 27. Qg2 {[%emt 0:00:48]} Rac8 {[%emt 0:01:48]} 28. Bd4 {[%emt 0:05:50]} b5 {[%emt 0:02:58]} 29. Ba1 {[%emt 0:00:44]} Nh5 {[%emt 0:03:13]} 30. Bxh5 {[%emt 0:02:28]} Bxa1 {[%emt 0:01:17]} 31. Rxa1 {[%emt 0:00:05]} gxh5 {[%emt 0:00:11]} 32. Nd4 {[%emt 0:01:47]} Rc4 {[%emt 0:01:08]} 33. Qb2 {[%emt 0:01:30]} Rxe4 {[%emt 0:01:17]} 34. Rxe4 {[%emt 0:00:26]} Bxd5 {[%emt 0:00:08]} 35. Rae1 {[%emt 0:00:52]} Qb7 {[%emt 0:01:13]} 36. Nf5 {[%emt 0:01:38]} Bxe4+ {[%emt 0:00:30]} 37. Kg1 {[%emt 0:00:13]} Qb6+ {[%emt 0:01:54]} 38. Kf1 {[%emt 0:00:30]} Bd3+ {[%emt 0:00:32]} 39. Re2 {[%emt 0:00:11]} Bxe2+ {[%emt 0:01:27]} 40. Kxe2 {[%emt 0:00:30]} f6 {[%emt 0:00:30]} 41. Qxf6 {[%emt 0:00:30]} Rc2+ {[%emt 0:00:30]} 42. Kd3 {[%emt 0:00:30]} Rd2+ {[%emt 0:00:25]} 43. Kxd2 {[%emt 0:01:06]} Qf2+ {[%emt 0:00:06]} 44. Kd3 {[%emt 0:00:18]} Qf1+ {[%emt 0:00:34]} 45. Ke3 {[%emt 0:01:12]} Qe1+ {[%emt 0:00:26]} 46. Kf3 {[%emt 0:00:57]} Qh1+ {[%emt 0:00:24]} 47. Ke2 {[%emt 0:00:48]} Qg2+ {[%emt 0:00:37]} 48. Kd3 {[%emt 0:00:11]} Qf1+ {[%emt 0:00:19]} 49. Kd2 {[%emt 0:00:28]} Qf2+ {[%emt 0:00:24]} 50. Kc3 {[%emt 0:00:43]} Qe1+ {[%emt 0:00:28]} 51. Kd3 {[%emt 0:01:03]} Qd1+ {[%emt 0:00:17]} 52. Ke4 {[%emt 0:00:20]} Qh1+ {[%emt 0:01:22]} 53. Kd3 {[%emt 0:00:55]} Qd1+ {[%emt 0:00:14]} 54. Ke3 {[%emt 0:01:03]} Qg1+ {[%emt 0:00:11]} 55. Ke2 {[%emt 0:00:00]} Qg2+ {[%emt 0:00:28]} 56. Kd3 {[%emt 0:00:08]} Qf1+ {[%emt 0:00:36]} 57. Kc2 {[%emt 0:00:13]} Qe2+ {[%emt 0:00:00]} 58. Kc1 {[%emt 0:00:59]} 1/2-1/2